Cogmind - Beta 13 @@@ ROGUE MODE // 2024.04.23 @ 05:58:19 Player: Sunrosa Result: Destroyed by H-55 Commando with Gauss Rifle Performance ------------- Evolutions (3) 1500 Regions Visited (6) 1200 Robots Destroyed (47) 235 Value Destroyed (833) 833 Prototype IDs (1) 20 Alien Tech Used (0) 0 Bonus (314) 314 TOTAL SCORE: 4102 Bonus ------- Follower Combat Kills 14 Aligned with FarCom 300 Cogmind --------- Core Integrity 0/700 Matter 30/300 Energy 100/100 System Corruption 16% Temperature Warning (395) Movement Core (50) Location -7/Factory Parts ------- > --- POWER (1) -------- (None) > --- PROPULSION (2) --- (None) > --- UTILITY (6) ------ (None) > --- WEAPON (4) ------- (None) > --- INVENTORY (5) ---- Light Treads Wheel High-capacity Matter Pod (200) Improved Medium Armor Plating Light Cannon Peak State ------------ > --- POWER ------------ Makeshift Power Source > --- PROPULSION ------- Wheel Wheel > --- UTILITY ---------- High-capacity Storage Unit Hardened Medium Armor Plating Improved Medium Armor Plating Improved Medium Armor Plating Medium Reactive Plating Hacking Suite > --- WEAPON ----------- Guided Plasma Cannon Flak Cannon Flak Cannon Improved Grenade Launcher > --- INVENTORY -------- Light Deuterium Engine Light Treads Light Treads Light Treads Wheel Wheel High-capacity Storage Unit High-capacity Matter Pod High-capacity Matter Pod Improved Medium Armor Plating Improved Medium Armor Plating Medium Reactive Plating Medium Reactive Plating Medium Reactive Plating Sensor Drone Bay Light Cannon Improved Grenade Launcher [Rating: 46] Favorites ----------- Power Ion Engine Engine Ion Engine Power Core Light Nuclear Core Propulsion Wheel Treads Light Treads Leg Aluminum Leg Wheel Wheel Utility High-capacity Storage Unit Device Seismic Detector Storage High-capacity Storage Unit Processor Transport Network Coupler Hackware Hacking Suite Protection Improved Medium Armor Plating Weapon Light Cannon Energy Cannon Guided Plasma Cannon Ballistic Gun Assault Rifle Ballistic Cannon Light Cannon Launcher Improved Grenade Launcher Build | -11 -10 -10 -10 -9 -8 -7 ------- Run | Yrd Mat Min Exi Min Mat Fac Slots Evolved 6 | . . . . . 4 2 Power . | . . . . . . . Propulsion . | . . . . . . . Utility 4 | . . . . . 2 2 Weapon 2 | . . . . . 2 . Parts Attached 72 | 5 22 6 3 1 21 14 Power 5 | . 1 . . 1 2 1 Engine 4 | . 1 . . 1 1 1 Core 1 | . . . . . 1 . Reactor . | . . . . . . . Propulsion 42 | 2 16 5 . . 14 5 Treads 21 | 1 8 2 . . 7 3 Leg . | . . . . . . . Wheel 21 | 1 8 3 . . 7 2 Hover . | . . . . . . . Flight . | . . . . . . . Utility 10 | 2 4 . . . 2 2 Device 2 | 2 . . . . . . Storage 2 | . 2 . . . . . Processor 1 | . 1 . . . . . Hackware 1 | . 1 . . . . . Protection 4 | . . . . . 2 2 Artifact . | . . . . . . . Weapon 15 | 1 1 1 3 . 3 6 Energy Gun . | . . . . . . . Energy Cannon 2 | . . . 1 . . 1 Ballistic Gun 3 | 1 . . 1 . 1 . Ballistic Cannon 8 | . 1 1 1 . 2 3 Launcher 2 | . . . . . . 2 Special Weapon . | . . . . . . . Impact Weapon . | . . . . . . . Slashing Weapon . | . . . . . . . Piercing Weapon . | . . . . . . . Special Melee Weapon . | . . . . . . . Unidentified Prototypes 1 | . . . 1 . . . Parts Lost 9 | . 1 1 . 1 . 6 Power 3 | . . . . 1 . 2 Propulsion . | . . . . . . . Utility 1 | . . . . . . 1 Weapon 5 | . 1 1 . . . 3 Highest Loss Streak 6 | . 1 1 . 1 . 6 To Critical Strikes . | . . . . . . . Average Slot Usage (%) 99 | . 100 99 100 100 97 98 Engine 10 | . 14 14 14 14 6 . Core 1 | . . . . . 2 6 Treads 9 | . 16 13 . . 4 . Wheel 15 | . 11 14 28 28 13 14 Device 3 | . 8 . . . . . Storage 12 | . 14 14 14 14 9 6 Processor 1 | . 4 . . . . . Hackware 7 | . 1 14 14 14 9 6 Protection 6 | . . . . . 16 29 Ballistic Gun 13 | . 26 7 . . 5 6 Ballistic Cannon 15 | . 1 20 26 28 30 22 Naked Turns 5 | . . . . . . 5 Heaviest Build 102 | 15 50 51 58 51 85 102 Greatest Support 40 | 20 40 40 20 20 40 20 Greatest Overweight (x) 8 | . 4 5 2 2 8 5 Average Overweight (x) 2 | . 2 4 2 2 3 4 Largest Inventory Capacity 20 | 8 20 20 20 20 20 20 Average Capacity 18 | 8 15 20 20 20 20 19 Most Carried 20 | 8 20 20 20 20 20 20 Average Carried 17 | 7 14 19 19 19 19 19 Final Capacity 20 | 8 20 20 20 20 20 20 Final Carried 20 | 8 20 20 20 20 20 20 Class Distribution -------------------- 73% | Mutant 19% | Scavenger-Tank 4% | Tank Dominant Class ---------------- Mutant | -10/Materials Mutant | -10/Mines Mutant | -10/Exiles Mutant | -9/Mines Scavenger-Tank | -8/Materials Scavenger-Tank | -7/Factory Resources | -11 -10 -10 -10 -9 -8 -7 ----------- Run | Yrd Mat Min Exi Min Mat Fac Matter Collected 2171 | 286 854 93 . 249 606 83 Remotely . | . . . . . . . Salvage Created 1614 | 104 854 28 . 121 368 139 Parts 99 | 7 58 5 . 3 18 8 Haulers Intercepted 2 | . 2 . . . . . Recyclers Shooed 6 | . 2 . . 2 1 1 Parts Field Recycled . | . . . . . . . Retrieved Matter . | . . . . . . . Parts Self-Destructed . | . . . . . . . Prevented . | . . . . . . . Kills | -11 -10 -10 -10 -9 -8 -7 ------- Run | Yrd Mat Min Exi Min Mat Fac Combat Hostiles Destroyed 26 | . 17 3 . 1 3 2 Guns 17 | . 17 . . . . . Cannons 9 | . . 3 . 1 3 2 Classes Destroyed 12 | 2 5 . . . 3 2 Worker 1 | . . . . . 1 . Tunneler 1 | 1 . . . . . . Hauler 2 | . 2 . . . . . Recycler 10 | 1 3 . . 2 3 1 Mechanic 1 | . . . . . 1 . Operator 2 | . 1 . . . . 1 Watcher 4 | . 3 . . . 1 . Swarmer 13 | . 9 3 . 1 . . Grunt 9 | . 8 . . . 1 . Protector 1 | . . . . . . 1 Sentry 2 | . . . . . 2 . Programmer 1 | . . . . . . 1 Best Kill Streak 4 | 1 4 3 . 2 3 1 Combat Bots Only 3 | . 3 3 . 1 1 1 Max Kills in Single Turn 2 | 1 1 1 . 1 2 1 Gunslinging . | . . . . . . . Exploded . | . . . . . . . Melee . | . . . . . . . Uniques/NPCs Destroyed . | . . . . . . . Combat | -11 -10 -10 -10 -9 -8 -7 -------- Run | Yrd Mat Min Exi Min Mat Fac Hostile Shots Fired 260 | . 72 21 . 6 22 139 Missed 51 | . 18 7 . 2 7 17 Damage Taken 2888 | . 547 164 . 56 194 1927 Core 832 | . 106 17 . 9 . 700 Absorbed by Shields . | . . . . . . . Ignored by Resistances 181 | . . . . . 31 150 Core Remaining (%) 82 | 100 . . . 47 100 . Volleys Fired 132 | 6 71 6 2 9 15 23 Largest 4 | 2 2 2 1 2 4 4 Hottest 143 | 40 40 70 120 70 140 143 Shots Fired 299 | 12 142 12 2 18 60 53 Gun 170 | 12 142 3 . . 5 8 Cannon 129 | . . 9 2 18 55 45 Launcher . | . . . . . . . Special . | . . . . . . . Kinetic 294 | 12 142 12 . 18 60 50 Thermal 5 | . . . 2 . . 3 Explosive . | . . . . . . . Electromagnetic . | . . . . . . . Robot Hit Streak 11 | 8 11 2 . 4 5 11 Robot Miss Streak 10 | 2 4 4 . 4 5 10 Penetration Max . | . . . . . . . Secondary Targets . | . . . . . . . Shots Hit Robots 164 | 9 83 3 . 9 29 31 Core Hits 88 | 3 37 3 . 3 13 29 Critical Kills . | . . . . . . . Critical Parts Destroyed . | . . . . . . . Critical Strikes 4 | . . . . 1 2 1 Blast 4 | . . . . 1 2 1 Melee Attacks . | . . . . . . . Impact . | . . . . . . . Slashing . | . . . . . . . Piercing . | . . . . . . . Sneak Attacks . | . . . . . . . Combat Hostiles . | . . . . . . . Follow-up Attacks . | . . . . . . . Damage Inflicted 2739 | 109 1117 54 . 153 537 769 Guns 1266 | 109 1117 . . . 15 25 Cannons 1461 | . . 50 . 153 522 736 Explosions . | . . . . . . . Melee . | . . . . . . . Ramming 12 | . . 4 . . . 8 Kinetic 2603 | 109 1117 50 . 153 537 637 Thermal 124 | . . . . . . 124 Explosive . | . . . . . . . Electromagnetic . | . . . . . . . Impact . | . . . . . . . Slashing . | . . . . . . . Piercing . | . . . . . . . Highest Corruption 15 | . . 1 1 1 . 15 Average Corruption 1 | . . 1 1 1 . 6 Corruption Purged . | . . . . . . . Corruption Blocked . | . . . . . . . Effects 10 | . . 1 4 . . 5 Message Errors 3 | . . . 2 . . 1 Matter Fused 1 | . . . . . . 1 Heat Flow Errors 2 | . . 1 1 . . . Energy Discharges 1 | . . . 1 . . . Data Loss (minor) 1 | . . . . . . 1 Weapon Failures 2 | . . . . . . 2 Overload Shots . | . . . . . . . Overflow Damage 19 | . . . . . . 19 Projectiles 19 | . . . . . . 19 Explosions . | . . . . . . . Melee . | . . . . . . . Knockbacks 17 | . . . . 6 . 11 Impact . | . . . . . . . Kinetic 15 | . . . . 5 . 10 Secondary 2 | . . . . 1 . 1 Self-Inflicted Damage 5 | . . 2 . . . 3 Shots . | . . . . . . . Rammed 7 | . . 1 . . . 6 Targets Rammed 7 | . . 1 . . . 6 Kicked . | . . . . . . . Crushed . | . . . . . . . Highest Temperature 656 | . . 170 273 21 500 656 Average Temperature 232 | . . 50 103 11 203 387 Received Heat Transfer 294 | . 156 . . 9 117 12 Effects 44 | . . . . . 8 36 Shutdowns 3 | . . . . . 1 2 Energy Bleed 3 | . . . . . 2 1 Interference 4 | . . . . . . 4 Matter Decay 5 | . . . . . 1 4 Short Circuit 7 | . . . . . 2 5 Damage (minor) 3 | . . . . . . 3 Damage (major) 14 | . . . . . 2 12 Damage (core) 5 | . . . . . . 5 Siege Activations . | . . . . . . . Robots Corrupted . | . . . . . . . Combat Hostiles . | . . . . . . . Parts Fried . | . . . . . . . Impact Corruptions . | . . . . . . . Robots Melted . | . . . . . . . Combat Hostiles . | . . . . . . . Parts Melted 1 | . . . . . . 1 Heat Transferred 200 | . . . . . . 200 Parts Sabotaged . | . . . . . . . Parts Stolen . | . . . . . . . Parts Stripped . | . . . . . . . Power Chain Reactions . | . . . . . . . Alert | -11 -10 -10 -10 -9 -8 -7 ------- Run | Yrd Mat Min Exi Min Mat Fac Peak Influence 326 | 10 326 99 . 56 121 30 Initial 99 | . 6 99 . . 13 9 Average 80 | 7 139 58 . 26 56 9 Maximum Alert Level 1 | . 1 . . . . . Low Security (%) 83 | 100 60 100 . 100 100 100 Level 1 16 | . 39 . . . . . Level 2 . | . . . . . . . Level 3 . | . . . . . . . Level 4 . | . . . . . . . Level 5 . | . . . . . . . High Security . | . . . . . . . Max Security . | . . . . . . . Squads Dispatched 8 | . 4 . . . 2 2 Investigation 3 | . 2 . . . . 1 Extermination . | . . . . . . . Reinforcement 4 | . 2 . . . 2 . Assault . | . . . . . . . Garrison 1 | . . . . . . 1 Intercept . | . . . . . . . Searches Triggered . | . . . . . . . Construction Impeded . | . . . . . . . Haulers Reinforced . | . . . . . . . Active Scanning Responses . | . . . . . . . Cargo Convoy Interrupts 1 | . . . . . . 1 Stealth | -11 -10 -10 -10 -9 -8 -7 --------- Run | Yrd Mat Min Exi Min Mat Fac Distress Signals 4 | . 2 . . . 1 1 Communications Jammed . | . . . . . . . Distress Signals . | . . . . . . . Times Spotted 67 | . 28 3 . 1 8 27 Peak Tracking Total 11 | . 4 3 . 1 2 11 Tactical Retreats . | . . . . . . . Traps | -11 -10 -10 -10 -9 -8 -7 ------- Run | Yrd Mat Min Exi Min Mat Fac Traps Triggered 3 | . 2 1 . . . . Indirectly . | . . . . . . . Trap Hack Attempts . | . . . . . . . Triggered . | . . . . . . . Disarmed . | . . . . . . . Reprogrammed . | . . . . . . . Reused . | . . . . . . . Traps Extracted . | . . . . . . . Installed . | . . . . . . . Triggered . | . . . . . . . Machines | -11 -10 -10 -10 -9 -8 -7 ---------- Run | Yrd Mat Min Exi Min Mat Fac Machines Disabled . | . . . . . . . Max in Single Turn . | . . . . . . . Machines Repaired . | . . . . . . . Machines Dismantled . | . . . . . . . Machines Sabotaged . | . . . . . . . Overloaded Fab Kills . | . . . . . . . Hacking | -11 -10 -10 -10 -9 -8 -7 --------- Run | Yrd Mat Min Exi Min Mat Fac Machines Accessed 12 | . 8 2 . . 1 1 Terminals 9 | . 7 . . . 1 1 Fabricators . | . . . . . . . Repair Stations . | . . . . . . . Recycling Units 1 | . 1 . . . . . Scanalyzers . | . . . . . . . Garrison Access . | . . . . . . . Total Hacks 26 | . 20 2 . . 2 2 Successful 8 | . 6 2 . . . . Failed 18 | . 14 . . . 2 2 Catastrophic 4 | . 3 . . . . 1 Database Lockouts . | . . . . . . . Manual 24 | . 19 . 1 . 2 2 Terminals 22 | . 18 . . . 2 2 Fabricators . | . . . . . . . Repair Stations . | . . . . . . . Recycling Units 2 | . 2 . . . . . Scanalyzers . | . . . . . . . Garrison Access . | . . . . . . . Terminal Hacks 6 | . 4 2 . . . . Part Schematic 1 | . 1 . . . . . Robot Analysis 1 | . 1 . . . . . Open Door 2 | . . 2 . . . . Terminal Index 1 | . 1 . . . . . Alert Level 1 | . 1 . . . . . Fabricator Hacks . | . . . . . . . Repair Station Hacks . | . . . . . . . Recycling Unit Hacks 1 | . 1 . . . . . Report Inventory 1 | . 1 . . . . . Scanalyzer . | . . . . . . . Garrison Access Hacks . | . . . . . . . Unauthorized Hacks 1 | . 1 . . . . . Terminals . | . . . . . . . Fabricators . | . . . . . . . Repair Stations . | . . . . . . . Recycling Units 1 | . 1 . . . . . Tunnel 1 | . 1 . . . . . Scanalyzers . | . . . . . . . Garrison Access . | . . . . . . . Data Cores Recovered 1 | . . . . . . 1 Used . | . . . . . . . Hacking Detections 10 | . 8 . . . 1 1 Full Trace Events 1 | . 1 . . . . . Feedback Events . | . . . . . . . Feedback Blocked . | . . . . . . . Robot Schematics Acquired . | . . . . . . . Robots Built . | . . . . . . . Authchips . | . . . . . . . Time . | . . . . . . . Total Robot Build Rating . | . . . . . . . Part Schematics Acquired 1 | . 1 . . . . . Parts Built . | . . . . . . . Authchips . | . . . . . . . Time . | . . . . . . . Total Part Build Rating . | . . . . . . . Parts Repaired . | . . . . . . . Time . | . . . . . . . Parts Recycled . | . . . . . . . Recycled Matter . | . . . . . . . Retrieved Matter . | . . . . . . . Retrieved Components . | . . . . . . . Parts Scanalyzed . | . . . . . . . Part Schematics Acquired . | . . . . . . . Parts Damaged . | . . . . . . . Bothacking | -11 -10 -10 -10 -9 -8 -7 ------------ Run | Yrd Mat Min Exi Min Mat Fac Used RIF Installer . | . . . . . . . Robots Hacked . | . . . . . . . Non-combat . | . . . . . . . Combat . | . . . . . . . Robot Hacks Applied . | . . . . . . . Relay Couplers Released . | . . . . . . . Fabnet Peak Effective % . | . . . . . . . Robots Rewired . | . . . . . . . Allies Hacked . | . . . . . . . Hacks Repelled . | . . . . . . . Allies | -11 -10 -10 -10 -9 -8 -7 -------- Run | Yrd Mat Min Exi Min Mat Fac Total Allies 2 | . . . . 2 . . Largest Group 2 | . . . . 2 . . Highest-Rated Group 45 | . . . . 45 . . Highest-Rated Ally 31 | . . . . 31 . . Total Orders . | . . . . . . . Ally Attacks 7 | . . . . 7 . . Total Damage 125 | . . . . 125 . . Kills 2 | . . . . 2 . . Allies Corrupted . | . . . . . . . Allies Melted . | . . . . . . . Intel | -11 -10 -10 -10 -9 -8 -7 ------- Run | Yrd Mat Min Exi Min Mat Fac Robot Analysis Total 1 | . 1 . . . . . Derelict Logs Recovered 2 | . . 1 . 1 . . Drone Launches . | . . . . . . . Drone Recoveries . | . . . . . . . Exploration | -11 -10 -10 -10 -9 -8 -7 ------------- Run | Yrd Mat Min Exi Min Mat Fac Turns Passed 5219 | 154 1959 979 551 199 560 817 Spaces Moved 2853 | 72 936 629 492 107 240 377 Core 1 | . . . . . . 1 Treads 450 | 72 353 7 . . 18 . Legs . | . . . . . . . Wheels 2402 | . 583 622 492 107 222 376 Hover . | . . . . . . . Flight . | . . . . . . . Fastest Speed 50 | 160 110 110 110 110 110 50 Average Speed 142 | 160 158 143 110 110 153 145 Slowest Speed 320 | 160 240 240 110 110 320 155 Overloaded Moves . | . . . . . . . Propulsion Burnouts . | . . . . . . . Robots Hopped . | . . . . . . . Cave-ins Triggered . | . . . . . . . Exploration Rate (%) 48 | 5 96 94 88 23 20 13 Regions Visited 6 Branch Regions 3 Pre-discovered Areas 1 | . 1 . . . . . Known Exits Taken 1 | . . . . . 1 . Unknown Exits Taken 5 | 1 1 1 1 1 . . Scrap Searched 1 | . . 1 . . . . Spaces Dug . | . . . . . . . Terrain Destroyed . | . . . . . . . Melee . | . . . . . . . Projectile . | . . . . . . . AOE . | . . . . . . . Terrain Rammed . | . . . . . . . Walls Destroyed . | . . . . . . . Machines Disabled . | . . . . . . . Actions | -11 -10 -10 -10 -9 -8 -7 --------- Run | Yrd Mat Min Exi Min Mat Fac Total 3733 | 97 1271 694 499 170 395 607 Wait 589 | 12 207 48 . 51 94 177 Move 2847 | 71 935 628 491 106 239 377 Hop . | . . . . . . . Pick Up 48 | 2 22 3 1 2 13 5 Fast Attach 8 | 2 1 . 1 . 4 . Attach 12 | . 2 1 . 1 2 6 Detach 2 | . 2 . . . . . Swap 52 | 3 19 5 2 . 15 8 Drop 36 | 1 12 2 2 1 13 5 Fire 132 | 6 71 6 2 9 15 23 Melee . | . . . . . . . Ram 7 | . . 1 . . . 6 Kick . | . . . . . . . Crush . | . . . . . . . Escape Stasis . | . . . . . . . Rewire . | . . . . . . . Trap . | . . . . . . . Miscellaneous . | . . . . . . . Route ------- -11/Scrapyard -10/Materials (discovered 4 exits: [*Mat x3] / *Min) -10/Mines (discovered 3 exits: [*Mat x2] / *Exi) -10/Exiles (discovered 2 exits: [*Min x2]) -9/Mines (discovered 2 exits: *Mat x2) -8/Materials -7/Factory History --------- Turn | Location | Event 6 | -11/Scrapyard | Discovered new exit (range 3) 155 | -11/Scrapyard | Entered Materials 317 | -10/Materials | Build established: Mutant 542 | -10/Materials | Discovered new exit (range 15) 1063 | -10/Materials | Discovered new exit (range 16) 1645 | -10/Materials | Discovered new exit (range 11) 1856 | -10/Materials | Discovered new exit (range 15) 2114 | -10/Materials | Entered Mines 2132 | -10/Mines | Met a Derelict bent on vengeance 2155 | -10/Mines | Deemed a non-threat by the Exiles lab entrance 2156 | -10/Mines | Discovered new exit (range 5) 2348 | -10/Mines | Found the Drone Emporium 2357 | -10/Mines | Learned 2 Materials zone layouts 2362 | -10/Mines | Found Prototype Device 2431 | -10/Mines | Discovered new exit (range 8) 2550 | -10/Mines | Discovered new exit (range 9) 2875 | -10/Mines | Met a Derelict who couldn't figure out how to use a Trap Extractor 3093 | -10/Mines | Entered Exiles 3118 | -10/Exiles | Discovered new exit (range 15) 3133 | -10/Exiles | Met 8R-AWN 3148 | -10/Exiles | Met EX-HEX 3217 | -10/Exiles | Met EX-BIN 3232 | -10/Exiles | Aligned with FarCom system 3233 | -10/Exiles | Given EX-Vault access code 3261 | -10/Exiles | Opened EX-Vault 3266 | -10/Exiles | Found Prototype Energy Cannon 3266 | -10/Exiles | Identified Gui. Plasma Cannon 3348 | -10/Exiles | Warned to stay clear of 0b10 Research branches 3378 | -10/Exiles | Met EX-DEC 3414 | -10/Exiles | Visited The Gauntlet 3620 | -10/Exiles | Discovered new exit (range 12) 3644 | -10/Exiles | Left Exiles lab with Gui. Plasma Cannon 3644 | -10/Exiles | Entered Mines 3697 | -9/Mines | Discovered new exit (range 13) 3745 | -9/Mines | Core integrity fell below 50% 3816 | -9/Mines | Learned Materials security intel 3820 | -9/Mines | Discovered new exit (range 12) 3843 | -9/Mines | Entered Materials 3843 | -8/Materials | Evolved 4 slots: Utility x2, Weapon x2 3844 | -8/Materials | Identified exit to Factory 4292 | -8/Materials | Met 7R-MNS 4403 | -8/Materials | Entered Factory 4403 | -7/Factory | Evolved 2 slots: Utility x2 4404 | -7/Factory | Caught up to 7R-MNS 4425 | -7/Factory | Build established: Scavenger-Tank 5111 | -7/Factory | Cargo convoy interrupted 5136 | -7/Factory | Garrison activated, responded to threat 5188 | -7/Factory | System corruption reached 10% 5192 | -7/Factory | Core integrity fell below 50% 5215 | -7/Factory | Released all parts (11) 5216 | -7/Factory | Core integrity fell below 20% 5220 | -7/Factory | Destroyed by H-55 Commando with Gauss Rifle Last Messages --------------- 05215_ Released Hcp. Storage Unit. 05215_ Released Broken Wheel. 05215_ Released Wheel. 05215_ Released Broken Imp. Grenade Launcher. 05215_ Released Imp. Grenade Launcher. 05215_ Slug penetrates Wall. 05216_ Slammed into P-60 Hacker. 05216_ Penetrated by Slug. 05217_ 8:PUXHVGW=NJQ#LZ1SOKV,B2 05217_ Slammed into H-55 Commando. 05217_ M-28 Smith repairs P-60 Hacker. 05218_ Acquired 4 matter. 05218_ P-60 Hacker heat damages core (-8). 05218_ Slammed into H-55 Commando. 05218_ Destabilizing: System corrupted (+1). 05218_ Penetrated by Slug. 05219_ Overheating: Matter decay (-4). 05219_ Slammed into H-55 Commando. 05220_ Slammed into X-67 Chaingunner. 05220_ Destabilizing: System corrupted (+1). Map ----- +----------------------------------------------------+ | ?????????????????????????????????????????????????? | | ?????????????????????????????????????????????????? | | ?????????????????????????????????????????????????? | | ?????????????????????????????????????????????????? | | ?????????????????????????????????????????????????? | | ?????????????????????????????????????????????????? | | ?????????????????????????????????????????????????? | | ?????????????????????????????????????????????????? | | ?????????????????????????????????????????????????? | | ?????????????????????????????????????????????????? | | ?????????????????????????????????????????????????? | | ?????????????????????????????????????????????????? | | ?????????????????????????????????????????????????? | | ?????????????????????????????????????????????????? | | ???????????????????########??????????????????????? | | ???????????????????# #??????????????????????? | | ???????????????????# =!!#??????????????????????? | | ????????? ?????# =!!!=#??????????????????????? | | ????????# #????# ==[[!#?????? ???????????????? | | ????????# #????#]*![/!p?????""???????????????? | | ????????# #????#!!!]!%#???? ""???????????????? | | ????????# #????#####]m#??? """"?????Y???????? | | ????????# #????????##h#??? """""????????????? | | ????????# #?????????#h#?? ?????????????? | | ????????# #?????????#x#p """??????????????? | | ??#???### #?????????#@# ! """??????????????? | | ?? ??? #?????????#h# """"?????????????? | | ###+##### #?????????#u# """"?????????????? | | # #?????????#u# [! #?????????? | | """ """ # #?????????#i# !*[[! #?????????? | | """ """ # ########### #"####[!######?????????? | | """ """ # =%*%=%!! " ?????? | | # %[%= !! "%%?????? | | """ + [ " ?????? | | """ # =! %g ! ??????? | | """ # !%* g ??????? | | ]] ]# ###################+########???????? | | ]] # #??????????????????????????????????? | | ]] # #??????????????????????????????????? | | # +??????????????????????????????????? | | ######### #??????????????????????????????????? | | % # #??????????????????????????????????? | | % # #??????????????????????????????????? | | %% # #??????????????????????????????????? | | # #??????????????????????????????????? | | # #??????????????????????????????????? | | # #??????????????????????????????????? | | = # ???????????????????????????????????? | | !%= # ?????????????????????????????????????? | | !** #?? ? #??????????????????????????????????? | +----------------------------------------------------+ Best States ------------- Heat Dissipation 34 Energy Generation 14 Energy Capacity 250 Matter Stores 300 Matter Capacity 300 Sight Range 16 Terrain Scan Range 16 Terrain Scan Density 10 Armor Coverage 900 Resistance: KI 30 Evasion (%) 40 Recoil Reduction 2 Offensive Hacking 10 Item Schematics ----------------- Hcp. Storage Unit | -10/Materials | Hacked Robot Schematics ------------------ None Fabricated ------------ Nothing Alien Tech Used ----------------- None Achievements -------------- None Challenges ------------ None Game ------ Seed UtilityMeleeInjector Manual? 0 Play Time 00:53:30 Cumulative 37.3 hours Start 2024.04.23 @ 05:00:54 End 2024.04.23 @ 05:58:19 Sessions 5 Manual Loads 0 Difficulty Rogue Special Mode None Game No. 24 Rogue 24 Adventurer 0 Explorer 0 Win Type - Total 0 Types 0/0/0/0/0/0/0/0/0 Lore% 23 Gallery% 28 Achievement% 26 Wizard Run 0 Options --------- Layout 0 ASCII 0 Keyboard 1 Movement Vi Keybinds 1 Fullscreen 1 Font 18/TerminusBold Map View 76x50 Zoom Use 0% Tactical HUD 1 Map Filters NONE Filters NONE Steam 1 RUN: f781ee39-e73e-4d1a-abf4-84e4febe25d7